Cogmind - Beta 13 @@@ ROGUE MODE // 2024.04.20 @ 20:29:09 Player: Baxter Result: Destroyed by G-47 Trooper with Particle Gun Performance ------------- Evolutions (1) 500 Regions Visited (3) 600 Robots Destroyed (77) 385 Value Destroyed (1904) 1904 Prototype IDs (5) 100 Alien Tech Used (0) 0 Bonus (84) 84 TOTAL SCORE: 3573 Bonus ------- High Alert Combat Kills 24 Follower Combat Kills 60 Cogmind --------- Core Integrity 0/400 Matter 295/300 Energy 250/250 System Corruption 0% Temperature Cool (15) Movement Rolling (105) Ox1 Location -9/Materials Parts ------- > --- POWER (1) -------- Ion Engine > --- PROPULSION (3) --- Armored Wheel Armored Wheel > --- UTILITY (3) ------ High-capacity Storage Unit > --- WEAPON (2) ------- Mace > --- INVENTORY (20) --- Carbon-fiber Leg Carbon-fiber Leg Carbon-fiber Leg Carbon-fiber Leg Carbon-fiber Leg Improved VTOL Module Improved VTOL Module Improved VTOL Module Improved VTOL Module Medium Storage Unit Medium Matter Pod (100) High-capacity Matter Pod (200) Structural Scanner Advanced Visual Processing Unit Hacking Suite Heavy Assault Rifle Heavy Assault Rifle Grenade Launcher Mini Grenade Launcher Peak State ------------ > --- POWER ------------ Improved Ion Engine > --- PROPULSION ------- Light Treads Armored Wheel Armored Wheel > --- UTILITY ---------- High-capacity Storage Unit Structural Scanner Sensor Array > --- WEAPON ----------- Heavy Assault Rifle Improved Assault Rifle > --- INVENTORY -------- Ion Engine Carbon-fiber Leg Carbon-fiber Leg Carbon-fiber Leg Carbon-fiber Leg Carbon-fiber Leg Improved VTOL Module Improved VTOL Module Improved VTOL Module Improved VTOL Module Medium Storage Unit Medium Matter Pod High-capacity Matter Pod Light Armor Plating Hacking Suite Heavy Assault Rifle Heavy Assault Rifle Grenade Launcher Mini Grenade Launcher Mace [Rating: 19] Favorites ----------- Power Light Ion Engine Engine Light Ion Engine Power Core Light Nuclear Core Propulsion Light Treads Treads Light Treads Wheel Wheel Flight Unit Improved VTOL Module Utility High-capacity Storage Unit Device Seismic Detector Storage High-capacity Storage Unit Protection Light Armor Plating Weapon Light Assault Rifle Energy Gun Improved EM Shotgun Ballistic Gun Light Assault Rifle Launcher Mini Grenade Launcher Impact Weapon Hammer Build | -11 -10 -10 -9 ------- Run | Yrd Mat Min Mat Slots Evolved 2 | . . . 2 Power . | . . . . Propulsion 1 | . . . 1 Utility 1 | . . . 1 Weapon . | . . . . Parts Attached 71 | 7 11 4 49 Power 7 | 1 2 . 4 Engine 6 | 1 1 . 4 Core 1 | . 1 . . Reactor . | . . . . Propulsion 21 | 2 2 1 16 Treads 7 | 1 1 . 5 Leg . | . . . . Wheel 13 | 1 1 1 10 Hover . | . . . . Flight 1 | . . . 1 Utility 20 | 2 3 2 13 Device 9 | 1 1 2 5 Storage 3 | 1 2 . . Processor . | . . . . Hackware . | . . . . Protection 8 | . . . 8 Artifact . | . . . . Weapon 23 | 2 4 1 16 Energy Gun 1 | . . . 1 Energy Cannon . | . . . . Ballistic Gun 17 | 2 3 1 11 Ballistic Cannon . | . . . . Launcher 1 | . . . 1 Special Weapon . | . . . . Impact Weapon 4 | . 1 . 3 Slashing Weapon . | . . . . Piercing Weapon . | . . . . Special Melee Weapon . | . . . . Unidentified Prototypes 3 | . . . 3 Parts Lost 15 | . . 1 14 Power 2 | . . . 2 Propulsion 3 | . . . 3 Utility 7 | . . 1 6 Weapon 3 | . . . 3 Highest Loss Streak 3 | . . 1 3 To Critical Strikes . | . . . . Average Slot Usage (%) 98 | . 99 99 96 Engine 10 | . 7 14 10 Core 2 | . 6 . . Treads 14 | . 14 14 14 Wheel 15 | . 14 14 18 Device 10 | . 13 13 6 Storage 12 | . 14 14 11 Protection 5 | . . . 13 Energy Gun 1 | . . . 2 Ballistic Gun 23 | . 27 28 18 Naked Turns . | . . . . Heaviest Build 59 | 12 49 47 59 Greatest Support 40 | 20 20 10 40 Greatest Overweight (x) 4 | . 4 4 4 Average Overweight (x) 2 | . 2 4 2 Largest Inventory Capacity 20 | 8 20 20 20 Average Capacity 18 | 7 18 20 20 Most Carried 20 | 8 20 20 20 Average Carried 16 | 6 13 19 19 Final Capacity 20 | 8 20 20 20 Final Carried 20 | 8 20 20 19 Class Distribution -------------------- 90% | Mutant 9% | Scavenger-Mutant Dominant Class ---------------- Mutant | -10/Materials Mutant | -10/Mines Mutant | -9/Materials Resources | -11 -10 -10 -9 ----------- Run | Yrd Mat Min Mat Matter Collected 2235 | 361 374 123 1377 Remotely . | . . . . Salvage Created 2894 | 198 611 217 1868 Parts 182 | 10 45 12 115 Haulers Intercepted 5 | . 2 . 3 Recyclers Shooed 5 | 1 . . 4 Parts Field Recycled . | . . . . Retrieved Matter . | . . . . Parts Self-Destructed . | . . . . Prevented . | . . . . Kills | -11 -10 -10 -9 ------- Run | Yrd Mat Min Mat Combat Hostiles Destroyed 51 | . 12 3 36 Guns 46 | . 12 3 31 AOE 5 | . . . 5 Classes Destroyed 11 | 2 6 . 3 Worker 3 | . . . 3 Builder 1 | . 1 . . Tunneler 6 | 4 . 2 . Hauler 5 | . 2 . 3 Recycler 2 | 1 . . 1 Operator 4 | . 1 . 3 Watcher 5 | . 3 . 2 Swarmer 10 | . 3 3 4 Grunt 30 | . 9 . 21 Duelist 2 | . . . 2 Sentry 9 | . . . 9 Best Kill Streak 6 | 2 4 3 6 Combat Bots Only 4 | . 3 3 4 Max Kills in Single Turn 3 | 1 1 1 3 Gunslinging . | . . . . Exploded 3 | . . . 3 Melee . | . . . . Uniques/NPCs Destroyed . | . . . . Combat | -11 -10 -10 -9 -------- Run | Yrd Mat Min Mat Hostile Shots Fired 302 | . 45 19 238 Missed 71 | . 6 3 62 Damage Taken 3055 | . 411 132 2512 Core 527 | . 89 32 406 Absorbed by Shields . | . . . . Regen/Repaired (Parts) 79 | . 79 . . Core Remaining (%) 75 | 100 . 51 . Volleys Fired 248 | 23 69 23 133 Largest 2 | 2 2 2 2 Hottest 68 | 40 40 40 68 Shots Fired 492 | 46 138 46 262 Gun 490 | 46 138 46 260 Cannon . | . . . . Launcher 2 | . . . 2 Special . | . . . . Kinetic 477 | 46 138 46 247 Thermal . | . . . . Explosive 2 | . . . 2 Electromagnetic 13 | . . . 13 Robot Hit Streak 18 | 10 11 8 18 Robot Miss Streak 5 | 2 5 3 5 Penetration Max . | . . . . Secondary Targets 2 | . . 1 1 Max Gunslinging Chain 1 | . . 1 1 Shots Hit Robots 331 | 33 79 30 189 Core Hits 152 | 12 36 12 92 Critical Kills 1 | . . . 1 Critical Parts Destroyed 2 | . 2 . . Critical Strikes 3 | . 2 . 1 Destroy 3 | . 2 . 1 Melee Attacks 14 | . 6 . 8 Impact 14 | . 6 . 8 Slashing . | . . . . Piercing . | . . . . Sneak Attacks 1 | . . . 1 Combat Hostiles . | . . . . Follow-up Attacks . | . . . . Damage Inflicted 4103 | 337 834 318 2614 Guns 3689 | 337 820 318 2214 Cannons . | . . . . Explosions 341 | . . . 341 Melee 42 | . . . 42 Ramming 31 | . 14 . 17 Kinetic 3463 | 337 820 318 1988 Thermal 142 | . . . 142 Explosive 199 | . . . 199 Electromagnetic 226 | . . . 226 Impact 42 | . . . 42 Slashing . | . . . . Piercing . | . . . . Highest Corruption 1 | . 1 1 . Average Corruption 1 | . 1 1 . Corruption Purged . | . . . . Corruption Blocked . | . . . . Effects 4 | . . 4 . Message Errors 2 | . . 2 . Heat Flow Errors 1 | . . 1 . Data Loss (major) 1 | . . 1 . Overload Shots . | . . . . Overflow Damage 47 | . . . 47 Projectiles . | . . . . Explosions 47 | . . . 47 Melee . | . . . . Knockbacks 1 | . . . 1 Impact 1 | . . . 1 Kinetic . | . . . . Secondary . | . . . . Self-Inflicted Damage 103 | . 7 . 96 Shots 3 | . . . 3 Rammed 3 | . 1 . 2 Targets Rammed 3 | . 1 . 2 Kicked . | . . . . Crushed . | . . . . Highest Temperature 202 | . 20 202 132 Average Temperature 21 | . 5 102 23 Received Heat Transfer 1248 | . 165 9 1074 Siege Activations . | . . . . Robots Corrupted . | . . . . Combat Hostiles . | . . . . Parts Fried 1 | . . . 1 Impact Corruptions . | . . . . Robots Melted . | . . . . Combat Hostiles . | . . . . Parts Melted . | . . . . Heat Transferred 100 | . . . 100 Parts Sabotaged . | . . . . Parts Stolen . | . . . . Parts Stripped . | . . . . Power Chain Reactions 1 | . . . 1 Alert | -11 -10 -10 -9 ------- Run | Yrd Mat Min Mat Peak Influence 466 | 25 206 122 466 Initial 22 | . 16 22 . Average 136 | 10 86 27 251 Maximum Alert Level 2 | . 1 . 2 Low Security (%) 67 | 100 97 100 21 Level 1 29 | . 2 . 72 Level 2 2 | . . . 5 Level 3 . | . . . . Level 4 . | . . . . Level 5 . | . . . . High Security . | . . . . Max Security . | . . . . Squads Dispatched 10 | . 2 1 7 Investigation 2 | . 1 . 1 Extermination . | . . . . Reinforcement 5 | . 1 . 4 Assault 3 | . . 1 2 Garrison . | . . . . Intercept . | . . . . Searches Triggered . | . . . . Construction Impeded . | . . . . Haulers Reinforced . | . . . . Active Scanning Responses . | . . . . Cargo Convoy Interrupts . | . . . . Stealth | -11 -10 -10 -9 --------- Run | Yrd Mat Min Mat Distress Signals 6 | . 1 . 5 Communications Jammed . | . . . . Distress Signals . | . . . . Times Spotted 99 | . 26 5 68 Peak Tracking Total 10 | . 4 3 10 Tactical Retreats 6 | . 2 1 3 Traps | -11 -10 -10 -9 ------- Run | Yrd Mat Min Mat Traps Triggered 3 | . 2 . 1 Indirectly . | . . . . Trap Hack Attempts . | . . . . Triggered . | . . . . Disarmed . | . . . . Reprogrammed . | . . . . Reused . | . . . . Traps Extracted . | . . . . Installed . | . . . . Triggered . | . . . . Machines | -11 -10 -10 -9 ---------- Run | Yrd Mat Min Mat Machines Disabled 3 | . . 1 2 Max in Single Turn 1 | . . . 1 Machines Repaired . | . . . . Machines Dismantled . | . . . . Machines Sabotaged . | . . . . Overloaded Fab Kills . | . . . . Hacking | -11 -10 -10 -9 --------- Run | Yrd Mat Min Mat Machines Accessed 14 | . 7 . 7 Terminals 13 | . 6 . 7 Fabricators . | . . . . Repair Stations 1 | . 1 . . Recycling Units . | . . . . Scanalyzers . | . . . . Garrison Access . | . . . . Total Hacks 50 | . 24 . 26 Successful 25 | . 16 . 9 Failed 24 | . 7 . 17 Catastrophic 3 | . 1 . 2 Database Lockouts 1 | . 1 . . Manual 36 | . 12 . 24 Terminals 46 | . 20 . 26 Fabricators . | . . . . Repair Stations 4 | . 4 . . Recycling Units . | . . . . Scanalyzers . | . . . . Garrison Access . | . . . . Terminal Hacks 8 | . 6 . 2 Robot Analysis 3 | . 3 . . Prototype ID Bank 1 | . 1 . . Terminal Index 1 | . . . 1 Alert Level 1 | . 1 . . Unreport Threat 1 | . . . 1 Zone Layout 1 | . 1 . . Fabricator Hacks . | . . . . Repair Station Hacks 4 | . 4 . . Scan Component 2 | . 2 . . Repair 2 | . 2 . . Recycling Unit Hacks . | . . . . Scanalyzer . | . . . . Garrison Access Hacks . | . . . . Unauthorized Hacks 13 | . 6 . 7 Terminals 13 | . 6 . 7 Botnet 11 | . 5 . 6 Operators 2 | . 1 . 1 Fabricators . | . . . . Repair Stations . | . . . . Recycling Units . | . . . . Scanalyzers . | . . . . Garrison Access . | . . . . Data Cores Recovered . | . . . . Used . | . . . . Hacking Detections 13 | . 6 . 7 Full Trace Events 1 | . 1 . . Feedback Events . | . . . . Feedback Blocked . | . . . . Robot Schematics Acquired . | . . . . Robots Built . | . . . . Authchips . | . . . . Time . | . . . . Total Robot Build Rating . | . . . . Part Schematics Acquired . | . . . . Parts Built . | . . . . Authchips . | . . . . Time . | . . . . Total Part Build Rating . | . . . . Parts Repaired 2 | . 2 . . Time 52 | . 52 . . Parts Recycled . | . . . . Recycled Matter . | . . . . Retrieved Matter . | . . . . Retrieved Components . | . . . . Parts Scanalyzed . | . . . . Part Schematics Acquired . | . . . . Parts Damaged . | . . . . Bothacking | -11 -10 -10 -9 ------------ Run | Yrd Mat Min Mat Used RIF Installer . | . . . . Robots Hacked . | . . . . Non-combat . | . . . . Combat . | . . . . Robot Hacks Applied . | . . . . Relay Couplers Released . | . . . . Fabnet Peak Effective % . | . . . . Robots Rewired . | . . . . Allies Hacked . | . . . . Hacks Repelled . | . . . . Allies | -11 -10 -10 -9 -------- Run | Yrd Mat Min Mat Total Allies 1 | . . 1 . Largest Group 1 | . . 1 1 Highest-Rated Group 31 | . . 31 31 Highest-Rated Ally 31 | . . 31 31 Total Orders . | . . . . Ally Attacks 9 | . . 5 4 Total Damage 175 | . . 92 83 Kills 2 | . . 2 . Allies Corrupted . | . . . . Allies Melted . | . . . . Intel | -11 -10 -10 -9 ------- Run | Yrd Mat Min Mat Robot Analysis Total 3 | . 3 . . Derelict Logs Recovered 2 | . . 2 . Drone Launches . | . . . . Drone Recoveries . | . . . . Exploration | -11 -10 -10 -9 ------------- Run | Yrd Mat Min Mat Turns Passed 5318 | 278 1863 1059 2118 Spaces Moved 2912 | 136 957 694 1125 Core 7 | 7 . . . Treads 261 | 106 77 . 78 Legs . | . . . . Wheels 2644 | 23 880 694 1047 Hover . | . . . . Flight . | . . . . Fastest Speed 50 | 50 100 140 105 Average Speed 137 | 144 135 140 136 Slowest Speed 320 | 160 160 140 320 Overloaded Moves . | . . . . Propulsion Burnouts . | . . . . Robots Hopped . | . . . . Cave-ins Triggered . | . . . . Exploration Rate (%) 69 | 6 91 98 83 Regions Visited 3 Branch Regions 1 Pre-discovered Areas 1 | . . 1 . Known Exits Taken . | . . . . Unknown Exits Taken 3 | 1 1 1 . Scrap Searched 1 | . . 1 . Spaces Dug 5 | . 1 . 4 Terrain Destroyed 31 | . 1 . 30 Melee 5 | . 1 . 4 Projectile . | . . . . AOE 26 | . . . 26 Terrain Rammed . | . . . . Walls Destroyed . | . . . . Machines Disabled . | . . . . Actions | -11 -10 -10 -9 --------- Run | Yrd Mat Min Mat Total 3766 | 173 1384 743 1466 Wait 409 | . 323 6 80 Move 2909 | 135 956 693 1125 Hop . | . . . . Pick Up 59 | 8 12 8 31 Fast Attach 16 | 7 3 . 6 Attach 14 | . . 1 13 Detach 1 | . . . 1 Swap 41 | . 8 3 30 Drop 52 | . 6 9 37 Fire 248 | 23 69 23 133 Melee 14 | . 6 . 8 Ram 3 | . 1 . 2 Kick . | . . . . Crush . | . . . . Escape Stasis . | . . . . Rewire . | . . . . Trap . | . . . . Miscellaneous . | . . . . Route ------- -11/Scrapyard -10/Materials (discovered 4 exits: *Mat x3 / [*Min]) -10/Mines (discovered 2 exits: *Mat x2) -9/Materials (discovered 4 exits: [*Mat x2] / [*Min x2]) History --------- Turn | Location | Event 8 | -11/Scrapyard | Discovered new exit (range 15) 279 | -11/Scrapyard | Entered Materials 318 | -10/Materials | Build established: Mutant 479 | -10/Materials | Discovered new exit (range 11) 1122 | -10/Materials | Discovered new exit (range 9) 1171 | -10/Materials | Discovered new exit (range 9) 1315 | -10/Materials | Central database locked down 1381 | -10/Materials | Repaired Seismic Detector 1409 | -10/Materials | Repaired Assault Rifle 2061 | -10/Materials | Discovered new exit (range 6) 2142 | -10/Materials | Entered Mines 2142 | -10/Mines | Discovered new exit (range 12) 2147 | -10/Mines | Learned location of Storage (-7) 2156 | -10/Mines | Met a Derelict bent on vengeance 2619 | -10/Mines | Learned 2 Materials zone layouts 2697 | -10/Mines | Met a Derelict testing a Signal Generator 3091 | -10/Mines | Discovered new exit (range 6) 3126 | -10/Mines | Joined a pair of Derelicts in attacking an 0b10 outpost 3201 | -10/Mines | Entered Materials 3201 | -9/Materials | Accompanied by 1 ally 3201 | -9/Materials | Evolved 2 slots: Propulsion x1, Utility x1 3799 | -9/Materials | Discovered new exit (range 8) 3851 | -9/Materials | Lost 3 parts (1p1n1w) 4143 | -9/Materials | Discovered new exit (range 8) 4286 | -9/Materials | Discovered new exit (range 6) 4430 | -9/Materials | Core integrity fell below 50% 4841 | -9/Materials | Discovered new exit (range 5) 4891 | -9/Materials | Build established: Scavenger-Mutant 5201 | -9/Materials | First assault squad dispatched 5240 | -9/Materials | Core integrity fell below 20% 5273 | -9/Materials | Lost 3 parts (1n2u) 5319 | -9/Materials | Destroyed by G-47 Trooper with Particle Gun Last Messages --------------- 05225_ Slammed into I-25 Savior. 05227_ L-31 Rogue suffers critical hit (Burn). 05231_ Lgt. Treads destroyed. 05235_ U-05 Engineer builds a Door. 05239_ C-30 ARC bursts open, deploying its payload. 05239_ G-47 Trooper unfolds itself. 05239_ G-34 Mercenary unfolds itself. 05239_ L-31 Rogue unfolds itself. 05239_ G-34 Mercenary unfolds itself. 05239_ M-13 Machinist unfolds itself. 05242_ Sensor Array destroyed. 05256_ K-01 Serf collects debris. 05261_ K-01 Serf cleans the Recycling Unit. 05272_ Acquired 18 matter. 05302_ G-34 Mercenary suffers critical hit (Burn). 05305_ Hvy. Assault Rifle destroyed. 05306_ Critical hit (Burn: +37). 05317_ U-05 Engineer builds a Wall. Map ----- +----------------------------------------------------+ | | | | | | | | | ??????????????#############???###########????????? | | ??????????????# #???# #????????? | | ??????????????# #???# #????????? | | ??????????????# #???# == #????????? | | ??????????????# """ "" #???# #????????? | | ??????????????# """ """#??## """ "" ########## | | #######???????# """ S"#??# """ T" # | | #???????# #??## ""%="" # | | ##############+######???# % # | | # # ###########+###### | | """ # """ # ##### | | """"" # """ ! + + | | """""?# """ # ##### | | """"??# ]] # ##+####### #???# | | """??# ]] ### ### !## #########+#### | | ??#####+###### ### ## | | ######### # #???## < ### ## | | # # ###### ### ## | | #!! # ###### #############+##########+#### | | #!! # # ?? ?????? # | | + / # #?? ! # " | | "" # # = @ # ## # " | | "" # """ #########+##### # # """ # " | | "" # """ #???## "% = # # """ ]]] ## """ # | | # """ #???###"/ # l # """ ]]] ## """ # | | #### #???#### ! + lm# """ ]]] ## ### | | #### """ #????### # # ## """ #?? | | ## """ #?????## # ##?######### ???? #?? | | ## """ #??##### ! # ##?????????#|????? #?? | | ## #??### ###+####g ##?????????#?????? #?? | | #########??## [# ###########????????#?? | | " #??????????## /# gg# #??????????? | | " #??????????## """ !+ g # #??????????? | | ###??????????## """""[# u# #??????????? | | ???????####??## ? """"" #% # """ """ ##?????????? | | ######?####?????? """"" # %# """ """ ##?????????? | | ######? #??????? """ #% # """ """ ##########?# | | # ##?? ???????? # # + #?# | | ##?? #???????#+##### # # #?# | | # ##?? ##??????## ##### #####+##### ### | | ## ##### ###?????# # | | ## ##### ######### % + | | # ##?## %%% # | | # ##### ##/###### #####+###########+#########%# | | # ##### ## ]# # ! #???????????#!# | | / ## """ # # #???????????#!# | +----------------------------------------------------+ Best States ------------- Heat Dissipation 28 Energy Generation 14 Energy Capacity 265 Matter Stores 300 Matter Capacity 300 Sight Range 16 Robot Scan Range 14 Terrain Scan Density 10 Armor Coverage 300 Evasion (%) 40 Recoil Reduction 2 Item Schematics ----------------- None Robot Schematics ------------------ None Fabricated ------------ Nothing Alien Tech Used ----------------- None Achievements -------------- None Challenges ------------ None Game ------ Seed ScrapPointTreads Manual? 0 Play Time 00:34:26 Cumulative 96.4 hours Start 2024.04.20 @ 19:56:23 End 2024.04.20 @ 20:29:09 Sessions 1 Manual Loads 0 Difficulty Rogue Special Mode None Game No. 98 Rogue 98 Adventurer 0 Explorer 0 Win Type - Total 2 Types 1/0/0/1/0/0/0/0/0 Lore% 42 Gallery% 51 Achievement% 40 Wizard Run 0 Options --------- Layout 1 ASCII 0 Keyboard 0 Movement Numpad Keybinds 0 Fullscreen 2 Font 24/X11 Map View 50x35 Zoom Use 0% Tactical HUD 1 Map Filters NONE Filters NONE Steam 0 RUN: 487723b6-4258-4fcf-b98d-de0c093852ac